Cogmind - Beta 14 @@@ ROGUE MODE // 2025.04.27 @ 11:36:11 Player: Florist Result: Destroyed by G-34 Mercenary with Small Laser Performance ------------- Evolutions (1) 500 Regions Visited (2) 400 Robots Destroyed (47) 235 Value Destroyed (1265) 1265 Prototype IDs (0) 0 Alien Tech Used (0) 0 Bonus (0) 0 TOTAL SCORE: 2400 Bonus ------- None Cogmind --------- Core Integrity 0/400 Matter 300/300 Energy 265/265 System Corruption 10% Temperature Cool (6) Movement Treading (145) Location -9/Materials Parts ------- > --- POWER (1) -------- Improved Ion Engine > --- PROPULSION (2) --- Advanced Treads Advanced Treads > --- UTILITY (4) ------ Large Storage Unit Improved Signal Interpreter Targeting Computer > --- WEAPON (2) ------- EM Shotgun Maul > --- INVENTORY (15) --- Light Treads Light Treads Light Treads Light Treads EM Shotgun EM Shotgun Peak State ------------ > --- POWER ------------ Improved Ion Engine > --- PROPULSION ------- Advanced Treads Advanced Treads > --- UTILITY ---------- Large Storage Unit Improved Signal Interpreter Targeting Computer Medium Armor Plating > --- WEAPON ----------- EM Shotgun EM Shotgun > --- INVENTORY -------- Light Treads Light Treads Light Treads Light Treads EM Shotgun EM Shotgun Maul [Rating: 20] Favorites ----------- Power Ion Engine Engine Ion Engine Propulsion Advanced Treads Treads Advanced Treads Leg Aluminum Leg Utility Targeting Computer Device Seismic Detector Storage Large Storage Unit Processor Targeting Computer Protection Medium Armor Plating Weapon Small Laser Energy Gun Small Laser Ballistic Gun Assault Rifle Impact Weapon Maul Build | -11 -10 -9 ------- Run | Yrd Mat Mat Slots Evolved 2 | . . 2 Power . | . . . Propulsion . | . . . Utility 2 | . . 2 Weapon . | . . . Parts Attached 38 | 7 6 25 Power 4 | 1 1 2 Engine 4 | 1 1 2 Core . | . . . Reactor . | . . . Propulsion 9 | 2 2 5 Treads 7 | 2 . 5 Leg 2 | . 2 . Wheel . | . . . Hover . | . . . Flight . | . . . Utility 11 | 1 2 8 Device 1 | . . 1 Storage 4 | 1 1 2 Processor 4 | . 1 3 Hackware . | . . . Protection 2 | . . 2 Artifact . | . . . Weapon 14 | 3 1 10 Energy Gun 10 | 3 1 6 Energy Cannon . | . . . Ballistic Gun 2 | . . 2 Ballistic Cannon . | . . . Launcher . | . . . Special Weapon . | . . . Impact Weapon 2 | . . 2 Slashing Weapon . | . . . Piercing Weapon . | . . . Special Melee Weapon . | . . . Unidentified Prototypes . | . . . Corrupted Parts 1 | . . 1 System Corruption 6 | . . 6 Parts Lost 10 | . 2 8 Power 2 | . 1 1 Propulsion 1 | . . 1 Utility 4 | . . 4 Weapon 3 | . 1 2 Highest Loss Streak 5 | . 1 5 To Critical Strikes . | . . . Average Slot Usage (%) 90 | . 98 84 Engine 8 | . 13 4 Treads 19 | . 19 20 Leg 4 | . 7 1 Device 2 | . . 3 Storage 12 | . 14 11 Processor 14 | . 13 15 Protection 3 | . . 5 Energy Gun 18 | . 27 10 Ballistic Gun 6 | . . 11 Peak Build Rating 20 | 6 7 20 Average Rating 10 | 4 6 14 On Entrance 4 | . 6 7 Naked Turns . | . . . Heaviest Build 40 | 11 28 40 Greatest Support 44 | 40 40 44 Greatest Overweight (x) 9 | . 9 1 Average Overweight (x) . | . . . Largest Inventory Capacity 25 | 8 15 25 Average Capacity 13 | 6 12 15 Most Carried 11 | 5 6 11 Average Carried 4 | 2 3 5 Final Capacity 15 | 8 15 15 Final Carried 6 | 3 3 6 Class Distribution -------------------- 100% | Mutant Dominant Class ---------------- Mutant | -10/Materials Mutant | -9/Materials Resources | -11 -10 -9 ----------- Run | Yrd Mat Mat Matter Collected 816 | 253 77 486 Remotely . | . . . Salvage Created 1628 | . 475 1153 Parts 81 | . 33 48 Haulers Intercepted 1 | . . 1 Recyclers Shooed . | . . . Parts Field Recycled . | . . . Retrieved Matter . | . . . Parts Self-Destructed . | . . . Prevented . | . . . Kills | -11 -10 -9 ------- Run | Yrd Mat Mat Combat Hostiles Destroyed 38 | . 12 26 Melee 3 | . . 3 Guns 30 | . 12 18 Classes Destroyed 9 | . 5 4 Worker 1 | . . 1 Hauler 1 | . . 1 Recycler 1 | . 1 . Operator 3 | . 2 1 Watcher 3 | . 3 . Swarmer 10 | . 6 4 Grunt 19 | . 6 13 Brawler 3 | . . 3 Sentry 6 | . . 6 Best Kill Streak 4 | . 3 4 Combat Bots Only 4 | . 3 4 Max Kills in Single Turn 1 | . 1 1 Gunslinging . | . . . Exploded . | . . . Melee 1 | . . 1 Uniques/NPCs Destroyed . | . . . Combat | -11 -10 -9 -------- Run | Yrd Mat Mat Hostile Shots Fired 244 | . 50 194 Missed 64 | . 11 53 Damage Taken 2154 | . 421 1733 Core 500 | . 100 400 Absorbed by Shields . | . . . Core Remaining (%) 80 | 100 60 . Volleys Fired 154 | . 60 94 Largest 2 | . 2 2 Hottest 112 | . 90 112 Shots Fired 304 | . 116 188 Gun 304 | . 116 188 Cannon . | . . . Launcher . | . . . Special . | . . . Kinetic 120 | . . 120 Thermal 154 | . 110 44 Explosive . | . . . Electromagnetic 30 | . 6 24 Robot Hit Streak 16 | . 15 16 Robot Miss Streak 5 | . 4 5 Penetration Max . | . . . Secondary Targets 3 | . . 3 Max Gunslinging Chain 1 | . . 1 Shots Hit Robots 214 | . 70 144 Core Hits 74 | . 31 43 Critical Kills 2 | . . 2 Critical Parts Destroyed 1 | . . 1 Critical Strikes 15 | . 7 8 Burn 12 | . 7 5 Smash 3 | . . 3 Melee Attacks 14 | . . 14 Impact 14 | . . 14 Slashing . | . . . Piercing . | . . . Sneak Attacks . | . . . Combat Hostiles . | . . . Follow-up Attacks . | . . . Damage Inflicted 3006 | . 884 2122 Guns 2443 | . 841 1602 Cannons . | . . . Explosions 43 | . 43 . Melee 520 | . . 520 Ramming . | . . . Kinetic 898 | . . 898 Thermal 1260 | . 854 406 Explosive . | . . . Electromagnetic 328 | . 30 298 Impact 520 | . . 520 Slashing . | . . . Piercing . | . . . Highest Corruption 10 | . . 10 Average Corruption 4 | . . 4 Corruption Purged . | . . . Corruption Blocked . | . . . Effects 25 | . . 25 Message Errors 7 | . . 7 Matter Fused 3 | . . 3 Heat Flow Errors 2 | . . 2 Parts Rejected 2 | . . 2 Data Loss (minor) 5 | . . 5 Data Loss (major) 1 | . . 1 Misfires 2 | . . 2 Alerts 1 | . . 1 Weapon Failures 2 | . . 2 Overload Shots . | . . . Overflow Damage 126 | . 13 113 Projectiles . | . . . Explosions 13 | . 13 . Melee 113 | . . 113 Knockbacks 2 | . . 2 Impact 2 | . . 2 Kinetic . | . . . Secondary . | . . . Self-Inflicted Damage 17 | . 17 . Shots 1 | . 1 . Rammed . | . . . Targets Rammed . | . . . Kicked . | . . . Crushed . | . . . Highest Temperature 390 | . 273 390 Average Temperature 82 | . 70 97 Received Heat Transfer 843 | . 138 705 Effects 1 | . . 1 Damage (minor) 1 | . . 1 Siege Activations . | . . . Robots Corrupted 4 | . . 4 Combat Hostiles 4 | . . 4 Parts Fried 10 | . . 10 Impact Corruptions 6 | . . 6 Robots Melted 1 | . . 1 Combat Hostiles 1 | . . 1 Parts Melted 10 | . 7 3 Heat Transferred 4095 | . 2689 1406 Parts Sabotaged . | . . . Parts Stolen . | . . . Parts Stripped . | . . . Power Chain Reactions 1 | . 1 . Alert | -11 -10 -9 ------- Run | Yrd Mat Mat Peak Influence 315 | . 237 315 Initial 55 | . . 55 Average 101 | . 106 100 Maximum Alert Level 1 | . 1 1 Low Security (%) 86 | 100 84 86 Level 1 13 | . 15 13 Level 2 . | . . . Level 3 . | . . . Level 4 . | . . . Level 5 . | . . . High Security . | . . . Max Security . | . . . Squads Dispatched 5 | . 2 3 Investigation 1 | . . 1 Extermination . | . . . Reinforcement 4 | . 2 2 Assault . | . . . Garrison . | . . . Intercept . | . . . Searches Triggered . | . . . Construction Impeded . | . . . Haulers Reinforced . | . . . Active Scanning Responses . | . . . Cargo Convoy Interrupts . | . . . Stealth | -11 -10 -9 --------- Run | Yrd Mat Mat Distress Signals 4 | . 1 3 Communications Jammed . | . . . Distress Signals . | . . . Times Spotted 70 | . 32 38 Peak Tracking Total 6 | . 3 6 Tactical Retreats 6 | . 2 4 Traps | -11 -10 -9 ------- Run | Yrd Mat Mat Traps Triggered 1 | . 1 . Indirectly . | . . . Trap Hack Attempts . | . . . Triggered . | . . . Disarmed . | . . . Reprogrammed . | . . . Reused . | . . . Traps Extracted . | . . . Installed . | . . . Triggered 1 | . . 1 Machines | -11 -10 -9 ---------- Run | Yrd Mat Mat Machines Disabled 1 | . . 1 Max in Single Turn 1 | . . 1 Machines Repaired . | . . . Machines Dismantled . | . . . Machines Sabotaged . | . . . Overloaded Fab Kills . | . . . Hacking | -11 -10 -9 --------- Run | Yrd Mat Mat Machines Accessed 2 | . 1 1 Terminals 2 | . 1 1 Fabricators . | . . . Repair Stations . | . . . Recycling Units . | . . . Scanalyzers . | . . . Garrison Access . | . . . Total Hacks 5 | . 2 3 Successful 2 | . 1 1 Failed 3 | . 1 2 Catastrophic 2 | . 1 1 Database Lockouts . | . . . Manual 5 | . 2 3 Terminals 5 | . 2 3 Fabricators . | . . . Repair Stations . | . . . Recycling Units . | . . . Scanalyzers . | . . . Garrison Access . | . . . Terminal Hacks . | . . . Fabricator Hacks . | . . . Repair Station Hacks . | . . . Recycling Unit Hacks . | . . . Scanalyzer . | . . . Garrison Access Hacks . | . . . Unauthorized Hacks 2 | . 1 1 Terminals 2 | . 1 1 Botnet 2 | . 1 1 Fabricators . | . . . Repair Stations . | . . . Recycling Units . | . . . Scanalyzers . | . . . Garrison Access . | . . . Data Cores Recovered . | . . . Used . | . . . Hacking Detections 2 | . 1 1 Full Trace Events 1 | . . 1 Feedback Events . | . . . Feedback Blocked . | . . . Robot Schematics Acquired . | . . . Robots Built . | . . . Authchips . | . . . Time . | . . . Total Robot Build Rating . | . . . Part Schematics Acquired . | . . . Parts Built . | . . . Authchips . | . . . Time . | . . . Total Part Build Rating . | . . . Parts Repaired . | . . . Time . | . . . Parts Recycled . | . . . Recycled Matter . | . . . Retrieved Matter . | . . . Retrieved Components . | . . . Parts Scanalyzed . | . . . Part Schematics Acquired . | . . . Parts Damaged . | . . . Bothacking | -11 -10 -9 ------------ Run | Yrd Mat Mat Used RIF Installer . | . . . Robots Hacked . | . . . Non-combat . | . . . Combat . | . . . Robot Hacks Applied . | . . . Relay Couplers Released . | . . . Fabnet Peak Effective % . | . . . Robots Rewired . | . . . Allies Hacked . | . . . Hacks Repelled . | . . . Allies | -11 -10 -9 -------- Run | Yrd Mat Mat Total Allies . | . . . Largest Group . | . . . Highest-Rated Group . | . . . Highest-Rated Ally . | . . . Total Orders . | . . . Ally Attacks . | . . . Total Damage . | . . . Kills . | . . . Allies Corrupted . | . . . Allies Melted . | . . . Intel | -11 -10 -9 ------- Run | Yrd Mat Mat Robot Analysis Total . | . . . Derelict Logs Recovered . | . . . Drone Launches . | . . . Drone Recoveries . | . . . Exploration | -11 -10 -9 ------------- Run | Yrd Mat Mat Turns Passed 3118 | 71 1390 1657 Spaces Moved 1487 | 43 681 763 Core 15 | 12 3 . Treads 1248 | 31 504 713 Legs 224 | . 174 50 Wheels . | . . . Hover . | . . . Flight . | . . . Fastest Speed 50 | 50 160 145 Average Speed 157 | 129 169 149 Slowest Speed 500 | 160 500 225 Overloaded Moves . | . . . Propulsion Burnouts . | . . . Robots Hopped . | . . . Cave-ins Triggered . | . . . Exploration Rate (%) 42 | 4 65 58 Regions Visited 2 Branch Regions . Pre-discovered Areas . | . . . Known Exits Taken . | . . . Unknown Exits Taken 2 | 1 1 . Scrap Searched . | . . . Spaces Dug . | . . . Terrain Destroyed 2 | . 2 . Melee . | . . . Projectile . | . . . AOE 2 | . 2 . Terrain Rammed . | . . . Walls Destroyed . | . . . Machines Disabled . | . . . Actions | -11 -10 -9 --------- Run | Yrd Mat Mat Total 1938 | 58 803 1077 Wait 193 | . 50 143 Move 1485 | 42 680 763 Hop . | . . . Pick Up 41 | 9 6 26 Fast Attach . | . . . Attach 30 | 6 5 19 Detach . | . . . Swap 8 | 1 1 6 Drop 13 | . 1 12 Fire 154 | . 60 94 Melee 14 | . . 14 Ram . | . . . Kick . | . . . Crush . | . . . Escape Stasis . | . . . Rewire . | . . . Trap . | . . . Miscellaneous . | . . . Route ------- -11/Scrapyard -10/Materials (discovered 3 exits: *Mat x2 / [*Min]) -9/Materials (discovered 1 exit: [*Min]) History --------- Turn | Location | Event 11 | -11/Scrapyard | Discovered new exit (range 16) 72 | -11/Scrapyard | Entered Materials 241 | -10/Materials | Discovered new exit (range 7) 317 | -10/Materials | Build established: Mutant 456 | -10/Materials | Discovered new exit (range 16) 881 | -10/Materials | Discovered new exit (range 4) 1462 | -10/Materials | Entered another Materials area 1462 | -9/Materials | Evolved 2 slots: Utility x2 2110 | -9/Materials | Core integrity fell below 50% 2142 | -9/Materials | Lost 5 parts (1p1n2u1w) 2660 | -9/Materials | Discovered new exit (range 14) 3038 | -9/Materials | Core integrity fell below 20% 3056 | -9/Materials | System corruption reached 10% 3119 | -9/Materials | Destroyed by G-34 Mercenary with Small Laser Last Messages --------------- Terminal linked with 0 systems. Awaiting botnet instructions. ALERT: Suspicious activity at Terminal M001. Dispatching Investigation squad. EM Shotgun destroyed. Med. Armor Plating destroyed. Destroyed Heat Sink. G-34 Mercenary system corrupted by crushing effect. Aluminum Leg fried. Sml. Laser fried. G-34 Mercenary destroyed. B-36 Bruiser suffers critical hit (Smash). B-36 Bruiser destroyed. System corrupted: Component data lost. Destroyed Heat Sink. G-34 Mercenary system corrupted by crushing effect. G-34 Mercenary system terminally corrupted. Sml. Laser fried. Acquired 10 matter. W-16 Scout sends out distress signal. Map ----- +----------------------------------------------------+ | ???????????????????# """ ### # ## ####????? | | ???????????????????# """ # # """ ## #???????? | | ???????????????????# # # """ ## #???????? | | ???????????????????# """ + + """ ## #???????? | | ???????????????????# """ # # ## ##??????? | | ???????????????????# """ # ####### ##+#+### | | ???????????????????# # | | ???????????????????# """ # * | | ???????????????????# """ # | | ???????????????????# """ ########### ##+##### | | ???????????????????# #?????????## ####??????? | | ???????????????????#?######??????????# #?????????? | | ?????????????????????????????????????# #?????????? | | ??????????????##?????????????????????# #?????????? | | ??????????????# ????????????????????# #?????????? | | ??????????????# ????????????????????# #?????????? | | ??????????????# ???????????????????# #?????????? | | ??????????????# ???????????????????# #?????????? | | ???????????????# #################### ########??? | | ??????????????## #??? | | ??????????????#T = #??? | | ??????????????## T [ [ #??? | | ????????# ###### ###############/### #??? | | ????????# w # # [[%= #? #??? | | ???????+ #% "" # ! #?? #??? | | ???????# %g@ "" # #???#??? | | ???????# g ##T###* T" # #??????? | | ???????# ######+##?###?# "" # #??????? | | ????????????????????????# "" # #??????? | | ????????????????????????# # #??????? | | ????????????????????????#""" # #??????? | | ????????????????????????#""" ###########??????? | | ????????????????????????#""" #????????????????? | | ????????????????????????# #????????????????? | | ?????????????????????????##?#####????????????????? | | ?????????????????????????????????????????????????? | | ?????????????????????????????????????????????????? | | ?????????????????????????????????????????????????? | | ?????????????????????????????????????????????????? | | ?????????????????????????????????????????????????? | | ?????????????????????????????????????????????????? | | ?????????????????????????????????????????????????? | | ?????????????????????????????????????????????????? | | ?????????????????????????????????????????????????? | | ?????????????????????????????????????????????????? | | ?????????????????????????????????????????????????? | | ?????????????????????????????????????????????????? | | | | | | | +----------------------------------------------------+ Best States ------------- Heat Dissipation 28 Energy Generation 12 Energy Capacity 265 Matter Stores 300 Matter Capacity 300 Sight Range 16 Terrain Scan Density 10 Armor Coverage 225 Evasion (%) 50 Targeting Accuracy 5 Recoil Reduction 2 Item Schematics ----------------- None Robot Schematics ------------------ None Fabricated ------------ Nothing Alien Tech Used ----------------- None Achievements -------------- None Challenges ------------ None Game ------ Seed MetafiberConstructPlatform Manual? 0 Play Time 00:15:57 Cumulative 56.7 hours Start 2025.04.27 @ 09:03:46 End 2025.04.27 @ 11:36:11 Sessions 2 Manual Loads 0 Difficulty Rogue Special Mode None Game No. 69 Rogue 69 Adventurer 0 Explorer 0 Win Type - Total 0 Types 0/0/0/0/0/0/0/0/0 Lore% 13 Gallery% 42 Achievement% 37 Wizard Run 0 Options --------- Layout 1 ASCII 0 Keyboard 0 Movement Mouse Keybinds 0 Fullscreen 1 Font 32/SmallcapsGlow Map View 77x35 Zoom Use 0% Tactical HUD 0 Map Filters NONE Filters NONE Steam 1 RUN: ea8fb41a-b547-4ffc-b587-48f39a5aaef0